bitfinex/quotes_SOLUSD_20250929
["timestamp","ask_amount","ask_price","bid_price","bid_amount"]
[1759111459583,0.10232002,209.54,209.53,13.59559401]
[1759111459895,0.08885538,209.55,209.53,19.06818027]
[1759111460193,0.08885538,209.55,209.54,51.37559401]
[1759111461467,1e-08,209.57,209.55,13.59559401]
[1759111461790,1e-08,209.57,209.56,50.67559401]
[1759111461980,1e-08,209.57,209.56,56.15749704]
[1759111463071,0.08891579,209.59,209.57,13.59559401]
[1759111463263,0.08891579,209.59,209.58,50.65559401]
[1759111463470,1e-08,209.59,209.58,51.36559401]
[1759111463794,1e-08,209.61,209.59,13.59559401]
[1759111463984,1e-08,209.61,209.6,55.44658637]
[1759111464169,1e-08,209.61,209.6,56.15658637]
[1759111465302,0.68,209.7,209.61,13.59559401]
[1759111465472,0.68,209.7,209.62,37.1]
[1759111465663,0.68,209.7,209.63,13.59559401]
[1759111465868,0.68,209.7,209.66,16.69369454]
[1759111466094,0.68,209.7,209.67,37.1]
[1759111466386,0.2,209.71,209.67,37.1]
[1759111466774,0.88,209.69,209.67,37.1]
[1759111466980,0.68,209.68,209.67,37.1]
[1759111468592,0.68,209.68,209.67,41.86939953]
[1759111468790,0.2,209.69,209.67,41.86939953]
[1759111469000,0.88,209.69,209.67,41.86939953]
[1759111469590,0.2,209.69,209.67,41.86939953]
[1759111469794,0.68,209.68,209.67,41.86939953]
[1759111470778,0.68,209.68,209.64,4.77008204]
[1759111470981,0.68,209.67,209.65,37.08]
[1759111471685,0.68,209.66,209.65,37.08]
[1759111472582,0.68,209.66,209.64,11.92520511]
[1759111472780,26.2,209.69,209.65,37.06]
[1759111473093,0.09700001,209.66,209.65,50.65559401]
[1759111473675,0.09700001,209.66,209.65,51.36559401]
[1759111475305,0.09700001,209.66,209.65,56.13544852]
[1759111475486,0.08996853,209.68,209.66,13.59559401]
[1759111475692,0.08996853,209.68,209.67,50.67559401]
[1759111475887,0.08996853,209.68,209.67,51.38559401]
[1759111476694,0.08996853,209.68,209.67,56.15499354]
[1759111476899,0.2925889,209.69,209.68,13.59559401]
[1759111477206,0.2925889,209.69,209.68,14.30559401]
[1759111477918,0.2925889,209.69,209.68,13.59559401]
[1759111478089,0.2925889,209.69,209.68,14.30559401]
[1759111478989,0.2925889,209.69,209.68,19.07476608]
[1759111479181,1e-08,209.69,209.68,19.07476608]
[1759111481092,1e-08,209.72,209.68,19.07476608]
[1759111481310,0.09887942,209.74,209.7,13.59559401]
[1759111481311,1e-08,209.74,209.7,13.59559401]
[1759111481604,1e-08,209.75,209.72,13.59559401]
[1759111481794,1e-08,209.75,209.74,13.59559401]
[1759111482186,1e-08,209.75,209.74,14.30559401]
[1759111483092,1e-08,209.75,209.74,19.07340177]
[1759111484491,1e-08,209.75,209.74,18.36340177]
[1759111486214,1e-08,209.75,209.74,55.40340177]
[1759111489710,1e-08,209.75,209.74,56.11340177]
[1759111490012,1e-08,209.75,209.74,55.40340177]
[1759111493011,0.10313151,209.75,209.74,55.40340177]
[1759111493789,0.78313151,209.75,209.74,55.40340177]
[1759111493994,0.10313151,209.75,209.74,55.40340177]
[1759111494611,0.10313151,209.75,209.74,4.76780776]
[1759111494818,0.10313151,209.75,209.74,55.34340177]
[1759111495310,0.78313151,209.75,209.74,55.34340177]
[1759111495616,0.10313151,209.75,209.74,55.34340177]
[1759111500000,0.10313151,209.75,209.74,19.06340177]
[1759111500194,0.10313151,209.75,209.74,56.00340177]
[1759111500395,0.10313151,209.75,209.74,55.30340177]
[1759111500590,0.10313151,209.75,209.74,18.36340177]
[1759111500839,0.10313151,209.75,209.74,55.30340177]
[1759111502008,0.78313151,209.75,209.73,4.76800133]
[1759111502315,26.0,209.73,209.71,36.96]
[1759111502521,0.68,209.72,209.71,36.96]
[1759111502709,0.68,209.72,209.68,4.76917207]
[1759111502710,26.68,209.72,209.7,36.98]
[1759111502909,3.063908,209.71,209.68,4.76917207]
[1759111503217,0.68,209.7,209.68,41.74917207]
[1759111503414,0.68,209.69,209.68,41.74917207]
[1759111503599,3.063908,209.69,209.68,41.74917207]
[1759111503799,3.063908,209.69,209.65,11.92421088]
[1759111503997,26.0,209.71,209.66,36.98]
[1759111504217,0.68,209.7,209.66,36.98]
[1759111504522,0.10313151,209.75,209.66,36.98]
[1759111504523,3.063908,209.69,209.66,36.98]
[1759111504730,0.68,209.68,209.66,36.98]
[1759111504916,0.68,209.67,209.66,36.98]
[1759111505757,0.68,209.67,209.62,4.7703192]
[1759111505920,2.383908,209.64,209.61,36.98]
[1759111506116,0.18,209.64,209.61,36.98]
[1759111506342,2.383908,209.65,209.61,36.98]
[1759111507647,2.383908,209.62,209.61,36.98]
[1759111508017,2.383908,209.62,209.6,4.77090346]
[1759111508219,0.68,209.61,209.59,37.0]
[1759111508409,3.063908,209.6,209.56,4.77190303]
[1759111508609,26.0,209.64,209.52,11.93167294]
[1759111508610,2.383908,209.58,209.52,11.93167294]
[1759111508813,0.68,209.57,209.53,37.02]
[1759111509030,2.383908,209.58,209.53,37.02]
[1759111509235,3.063908,209.65,209.55,13.59559401]
[1759111509428,3.063908,209.65,209.57,13.59559401]
[1759111509739,3.063908,209.65,209.58,37.76]
[1759111509940,3.063908,209.65,209.59,16.69927]
[1759111510810,2.383908,209.63,209.59,16.69927]
[1759111511031,0.68,209.62,209.59,16.69927]
[1759111513144,2.383908,209.63,209.59,16.69927]
[1759111513445,3.103908,209.63,209.59,16.69927]
[1759111514218,2.383908,209.63,209.59,17.40927]
[1759111514618,29.103908,209.65,209.59,17.40927]
[1759111515019,0.72,209.65,209.59,17.40927]
[1759111515215,3.103908,209.65,209.59,17.40927]
[1759111515419,2.383908,209.65,209.6,0.71]
[1759111515616,2.383908,209.65,209.61,0.71]
[1759111516025,3.103908,209.65,209.59,16.69927]
[1759111516225,3.103908,209.65,209.59,17.40927]
[1759111517243,2.383908,209.65,209.6,0.71]
[1759111517444,2.383908,209.65,209.61,0.71]
[1759111517650,0.72,209.64,209.59,4.77122]
[1759111517851,2.383908,209.62,209.59,4.77122]
[1759111518020,3.103908,209.62,209.59,4.77122]
[1759111518424,2.383908,209.62,209.59,4.77122]
[1759111518646,3.103908,209.62,209.59,4.77122]
[1759111518857,2.383908,209.62,209.59,4.77122]
[1759111519038,2.383908,209.64,209.6,0.71]
[1759111519953,2.383908,209.64,209.59,4.77122]
[1759111520155,2.383908,209.64,209.61,4.77076475]
[1759111521634,26.0,209.67,209.62,0.65]
[1759111521859,26.0,209.67,209.63,0.65]
[1759111522157,26.0,209.67,209.64,4.77008204]
[1759111522345,26.71,209.66,209.61,4.77076475]
[1759111522751,3.093908,209.65,209.61,4.77076475]
[1759111522954,0.71,209.64,209.61,4.77076475]
[1759111523568,0.71,209.63,209.61,4.77076475]
[1759111523964,2.383908,209.65,209.61,4.77076475]
[1759111524155,3.093908,209.64,209.59,16.69927]
[1759111524346,3.093908,209.64,209.59,17.34927]
[1759111524539,2.383908,209.64,209.6,0.65]
[1759111524741,26.0,209.65,209.6,0.65]
[1759111524969,26.71,209.65,209.6,0.65]
[1759111525468,0.71,209.65,209.6,0.65]
[1759111525960,26.71,209.65,209.6,0.65]
[1759111527654,26.71,209.65,209.61,4.77076475]
[1759111528160,26.71,209.65,209.61,17.34767663]
[1759111529167,26.0,209.65,209.61,17.34767663]
[1759111529472,28.383908,209.66,209.61,17.34767663]
[1759111529767,29.093908,209.66,209.61,17.34767663]
[1759111530362,28.383908,209.66,209.61,4.77076475]
[1759111530579,2.383908,209.64,209.61,4.77076475]
[1759111530887,3.093908,209.64,209.61,4.77076475]
[1759111532271,2.383908,209.64,209.6,16.69847327]
[1759111532452,2.383908,209.64,209.6,17.34847327]
[1759111532843,28.383908,209.65,209.6,16.69847327]
[1759111533074,26.0,209.66,209.61,0.65]
[1759111533244,26.0,209.66,209.62,0.65]
[1759111533443,26.0,209.66,209.63,0.65]
[1759111533974,26.0,209.67,209.63,0.65]
[1759111534445,26.71,209.67,209.64,4.77008204]
[1759111534673,26.0,209.67,209.64,5.42008204]
[1759111535095,3.093908,209.69,209.64,5.42008204]
[1759111535502,0.71,209.68,209.64,4.77008204]
[1759111535799,0.71,209.68,209.64,5.42008204]
[1759111536687,2.383908,209.69,209.64,5.42008204]
[1759111536996,3.093908,209.69,209.64,5.42008204]
[1759111537603,3.093908,209.69,209.64,17.34528715]
[1759111538194,2.383908,209.68,209.64,17.34528715]
[1759111539101,26.71,209.69,209.64,17.34528715]
[1759111539301,2.383908,209.68,209.64,16.69528715]
[1759111539500,2.383908,209.68,209.64,17.34528715]
[1759111539901,2.383908,209.68,209.64,16.69528715]
[1759111540094,2.383908,209.68,209.65,0.65]
[1759111540805,2.383908,209.68,209.66,5.41962701]
[1759111541697,4.76806148,209.73,209.67,0.65]
[1759111541698,2.383908,209.73,209.67,0.65]
[1759111542001,26.0,209.72,209.67,0.65]
[1759111542300,26.0,209.72,209.68,0.65]
[1759111542502,26.0,209.72,209.69,0.65]
[1759111543003,28.383908,209.73,209.7,4.76871721]
[1759111543303,29.093908,209.73,209.7,4.76871721]
[1759111543997,26.0,209.73,209.7,4.76871721]
[1759111544197,28.383908,209.73,209.7,5.41871721]
[1759111545095,2.38390801,209.75,209.71,0.65]
[1759111545483,26.0,209.74,209.71,0.65]
[1759111546404,26.0,209.73,209.7,4.76871721]
[1759111546592,26.0,209.73,209.71,0.65]
[1759111546983,26.0,209.73,209.72,4.76826244]
[1759111547902,26.0,209.74,209.72,4.76826244]
[1759111549286,1e-08,209.75,209.73,0.65]
[1759111549495,1e-08,209.75,209.74,13.59559401]
[1759111549902,1e-08,209.75,209.74,0.65]
[1759111551292,1e-08,209.75,209.74,5.41780776]
[1759111557229,1e-08,209.75,209.74,4.76780776]
[1759111557802,1e-08,209.75,209.68,23.84582982]
[1759111557803,0.71000001,209.75,209.71,4.76848981]
[1759111558007,0.71,209.74,209.71,4.76848981]
[1759111558208,0.71,209.73,209.71,4.76848981]
[1759111559017,0.71,209.73,209.7,4.76871721]
[1759111559343,0.71000001,209.75,209.7,4.76871721]
[1759111559524,0.71,209.74,209.7,4.76871721]
[1759111559848,0.71,209.73,209.7,4.76871721]
[1759111560128,26.0,209.74,209.7,4.76871721]
[1759111560334,26.71,209.74,209.7,4.76871721]
[1759111560528,0.71,209.73,209.7,4.76871721]
[1759111561316,0.71,209.72,209.7,4.76871721]
[1759111561517,26.0,209.73,209.63,14.07859957]
[1759111561518,2.23587458,209.71,209.65,11.92431885]
[1759111561746,0.71,209.7,209.65,11.92431885]
[1759111562030,0.71,209.7,209.65,49.55431885]
[1759111562227,0.71,209.7,209.65,48.88431885]
[1759111562541,27.52587458,209.71,209.66,0.67]
[1759111562834,28.23587458,209.71,209.66,0.67]
[1759111563206,0.71,209.7,209.67,4.76939953]
[1759111564238,0.71,209.7,209.66,4.76962701]
[1759111564533,1.52587458,209.71,209.67,0.67]
[1759111564952,2.23587458,209.71,209.67,0.67]
[1759111565250,0.71,209.74,209.68,0.67]
[1759111566740,0.71,209.74,209.69,4.76894463]
[1759111566924,2.23587458,209.73,209.69,4.76894463]
[1759111569586,26.00000001,209.75,209.7,0.67]
[1759111569756,1.52587459,209.75,209.7,0.67]
[1759111569954,1.52587459,209.75,209.71,0.67]
[1759111570175,2.23587459,209.75,209.71,0.67]
[1759111570479,2.23587459,209.75,209.72,4.76826244]
[1759111570876,28.23587459,209.75,209.72,4.76826244]
[1759111571680,0.71,209.74,209.72,4.76826244]
[1759111572285,27.52587459,209.75,209.7,4.76871721]
[1759111572583,2.24587459,209.75,209.7,4.76871721]
[1759111572779,0.72,209.74,209.7,4.76871721]
[1759111574377,0.72,209.74,209.67,16.69289836]
[1759111574565,1.52587458,209.72,209.67,16.69289836]
[1759111574760,1.52587458,209.72,209.67,4.76939953]
[1759111574761,0.72,209.71,209.67,4.76939953]
[1759111575061,2.24587458,209.7,209.67,4.76939953]
[1759111575458,2.24587458,209.7,209.65,41.72963818]
[1759111575659,1.52587458,209.68,209.62,0.71]
[1759111576879,1.52587458,209.65,209.6,5.48099236]
[1759111577060,2.24587458,209.65,209.6,5.48099236]
[1759111577250,2.24587458,209.65,209.6,4.77099236]
[1759111577654,2.24587458,209.65,209.6,5.48099236]
[1759111578793,2.24587458,209.65,209.61,0.71]
[1759111579171,40.34823158,209.66,209.6,4.77099236]
[1759111579172,27.52587458,209.66,209.62,0.71]
[1759111579471,26.0,209.64,209.62,0.71]
[1759111580181,26.0,209.64,209.63,4.77030959]
[1759111580490,26.0,209.64,209.61,4.77055139]
[1759111580853,26.68,209.64,209.61,4.77055139]
[1759111581057,27.52587458,209.64,209.61,5.44055139]
[1759111582692,26.0,209.64,209.61,5.44055139]
[1759111583664,1.52587458,209.68,209.62,0.67]
[1759111583859,0.68,209.7,209.62,0.67]
[1759111583860,1.52587458,209.7,209.62,0.67]
[1759111584072,30.76798682,209.71,209.62,0.67]
[1759111584564,31.44798682,209.71,209.62,0.67]
[1759111584965,31.44798682,209.71,209.63,16.69608357]
[1759111585165,31.44798682,209.71,209.64,0.67]
[1759111586186,36.21648009,209.71,209.64,0.67]
[1759111586369,1.52587458,209.68,209.63,4.77030959]
[1759111586689,2.20587458,209.68,209.63,5.44030959]
[1759111586889,0.68,209.67,209.63,5.44030959]
[1759111587204,26.68,209.67,209.63,4.77030959]
[1759111588290,0.68,209.66,209.63,4.77030959]
[1759111588591,1.52587458,209.64,209.59,11.92763384]
[1759111588900,0.68,209.63,209.59,11.92763384]
[1759111589283,0.68,209.62,209.58,4.77144765]
[1759111589496,0.68,209.61,209.58,4.77144765]
[1759111589797,26.0,209.62,209.58,4.77144765]
[1759111589973,27.52587458,209.63,209.58,4.77144765]
[1759111590175,0.68,209.62,209.58,4.77144765]
[1759111590392,26.68,209.61,209.58,4.77144765]
[1759111590771,26.0,209.61,209.58,4.77144765]
[1759111591097,0.68,209.6,209.56,4.77190303]
[1759111591892,0.68,209.6,209.56,5.44190303]
[1759111592191,27.52587458,209.61,209.57,0.67]
[1759111592798,27.52587458,209.61,209.58,4.77144765]
[1759111593798,0.68,209.6,209.55,11.93020437]
[1759111594003,0.68,209.6,209.55,12.60020437]
[1759111594200,27.52587458,209.61,209.56,0.67]
[1759111594381,28.20587458,209.61,209.56,0.67]
[1759111594723,28.20587458,209.61,209.57,0.67]
[1759111594996,26.0,209.61,209.58,0.67]
[1759111595197,0.68,209.64,209.58,0.67]
[1759111595394,26.0,209.64,209.58,0.67]
[1759111595902,26.0,209.65,209.59,16.69927]
[1759111596087,26.0,209.65,209.59,17.36927]
[1759111600704,26.68,209.65,209.59,17.36927]
[1759111602297,26.0,209.65,209.59,17.36927]
[1759111602502,0.68,209.64,209.59,17.36927]
[1759111602803,0.68,209.64,209.6,0.67]
[1759111603687,0.68,209.64,209.61,4.77076475]
[1759111604983,0.68,209.71,209.62,0.67]
[1759111605397,26.0,209.69,209.62,0.67]
[1759111605591,0.68,209.68,209.62,0.67]
[1759111607192,0.68,209.68,209.63,16.69608357]
[1759111607391,26.0,209.69,209.64,0.67]
[1759111607602,26.68,209.69,209.63,16.69608357]
[1759111607915,26.68,209.69,209.64,0.67]
[1759111608207,26.68,209.69,209.66,4.76962701]
[1759111608690,19.11393524,209.72,209.67,0.67]
[1759111608691,15.02548715,209.72,209.67,0.67]
[1759111609008,26.0,209.73,209.67,0.67]
[1759111609605,0.68,209.74,209.67,0.67]
[1759111609811,1e-08,209.75,209.67,0.67]
[1759111610327,26.0,209.74,209.68,16.69210224]
[1759111610504,26.0,209.74,209.69,0.67]
[1759111611005,26.00000001,209.75,209.7,0.66]
[1759111611205,26.65000001,209.75,209.7,0.66]
[1759111611698,0.65,209.74,209.7,0.66]
[1759111612297,0.65,209.74,209.71,4.76848981]
[1759111614898,26.00000001,209.75,209.71,5.42848981]
[1759111615105,26.65000001,209.75,209.71,4.76848981]
[1759111615314,0.65,209.74,209.71,4.76848981]
[1759111615507,26.65,209.74,209.71,4.76848981]
[1759111615916,26.65,209.74,209.7,4.76871721]
[1759111616113,26.65,209.74,209.7,5.42871721]
[1759111616528,26.0,209.74,209.71,0.66]
[1759111616716,26.65,209.74,209.7,4.76871721]
[1759111617025,26.0,209.74,209.71,0.66]
[1759111617194,1e-08,209.75,209.72,0.66]
[1759111617401,26.00000001,209.75,209.7,16.69051024]
[1759111617594,26.65000001,209.75,209.71,0.66]
[1759111618109,26.00000001,209.75,209.72,4.76826244]
[1759111618718,26.65000001,209.75,209.72,4.76826244]
[1759111619614,26.00000001,209.75,209.72,5.42826244]
[1759111620405,1e-08,209.75,209.73,0.66]
[1759111621622,1e-08,209.75,209.74,4.76780776]
[1759111622231,1e-08,209.75,209.69,11.92209327]
[1759111622407,0.65,209.74,209.69,12.58209327]
[1759111622728,0.65,209.74,209.7,0.66]
[1759111623024,1e-08,209.75,209.7,0.66]
[1759111623225,0.65000001,209.75,209.7,0.66]
[1759111623405,0.65000001,209.75,209.71,0.66]
[1759111623609,0.65000001,209.75,209.72,4.76826244]
[1759111625328,0.65000001,209.75,209.71,5.42828095]
[1759111625624,1e-08,209.75,209.71,5.42828095]
[1759111627129,1e-08,209.75,209.72,0.66]
[1759111627907,0.65,209.74,209.62,4.77053716]
[1759111628126,26.0,209.7,209.66,0.66]
[1759111628431,2.38577383,209.67,209.59,0.66]
[1759111628608,28.38577383,209.65,209.59,0.66]
[1759111628809,26.0,209.63,209.59,0.66]
[1759111629325,26.0,209.63,209.6,0.66]
[1759111629519,0.65,209.62,209.58,5.43144765]
[1759111629729,0.65,209.62,209.58,4.77144765]
[1759111630030,26.0,209.63,209.58,4.77144765]
[1759111630331,26.0,209.63,209.59,0.66]
[1759111630916,26.65,209.63,209.59,0.66]
[1759111631228,26.65,209.63,209.6,4.77099236]
[1759111632012,26.0,209.62,209.6,4.77099236]
[1759111632711,26.0,209.62,209.59,4.77120637]
[1759111633541,26.0,209.62,209.58,4.77144765]
[1759111633717,2.38577383,209.59,209.52,12.61190753]
[1759111633930,26.0,209.6,209.53,17.38405192]
[1759111634109,13.59559401,209.6,209.54,14.27559401]
[1759111634424,26.0,209.62,209.55,0.68]
[1759111634824,26.0,209.61,209.55,0.68]
[1759111635529,26.0,209.62,209.55,0.68]
[1759111635727,26.0,209.62,209.56,16.70166061]
[1759111635926,26.0,209.62,209.57,0.68]
[1759111636125,26.0,209.62,209.58,0.68]
[1759111637652,26.0,209.62,209.59,4.77122]
[1759111638112,26.0,209.62,209.6,0.68]
[1759111638513,26.0,209.64,209.59,4.77122]
[1759111638738,0.67,209.63,209.59,4.77122]
[1759111639243,26.0,209.64,209.59,5.45122]
[1759111639420,26.67,209.64,209.59,5.45122]
[1759111639939,0.67,209.63,209.59,4.77122]
[1759111641043,26.68,209.62,209.59,4.77122]
[1759111641229,26.0,209.62,209.59,4.77122]
[1759111641544,0.68,209.61,209.59,4.77122]
[1759111642217,28.38577383,209.62,209.57,16.7007245]
[1759111642417,29.06577383,209.62,209.57,17.4207245]
[1759111644542,2.38577383,209.62,209.57,16.7007245]
[1759111644749,0.68,209.61,209.57,4.77167533]
[1759111645950,0.68,209.61,209.56,4.77190303]
[1759111646131,0.68,209.61,209.56,5.49190303]
[1759111646325,0.68,209.61,209.56,4.77190303]
[1759111646534,0.68,209.61,209.57,0.72]
[1759111647732,0.68,209.61,209.55,0.72]
[1759111648753,2.38577383,209.59,209.55,0.72]
[1759111649050,0.68,209.61,209.57,4.77167533]
[1759111649354,2.38577383,209.59,209.57,4.77167533]
[1759111649749,2.38577383,209.59,209.57,5.49167533]
[1759111650544,2.38577383,209.59,209.57,4.77167533]
[1759111650937,2.38577383,209.59,209.53,40.56698324]
[1759111651150,2.38577383,209.59,209.57,0.72]
[1759111651449,2.38577383,209.59,209.53,40.56698324]
[1759111651637,2.38577383,209.59,209.56,0.72]
[1759111651953,2.38577383,209.59,209.57,0.72]
[1759111653131,2.38577383,209.59,209.58,5.49144765]
[1759111653349,2.38577383,209.61,209.58,5.49144765]
[1759111653549,2.38577383,209.61,209.58,17.42006679]
[1759111654136,2.38577383,209.61,209.58,16.70006679]
[1759111654452,2.38577383,209.61,209.59,0.72]
[1759111654648,2.38577383,209.61,209.6,0.72]
[1759111654840,2.38577383,209.63,209.6,0.72]
[1759111656356,2.38577383,209.63,209.61,0.72]
[1759111656532,2.38577383,209.63,209.62,0.72]
[1759111656727,2.38577383,209.63,209.62,5.49053716]
[1759111656931,2.38577383,209.64,209.62,5.49053716]
[1759111657254,2.38577383,209.65,209.63,0.72]
[1759111657550,28.38577383,209.66,209.64,0.72]
[1759111657758,26.0,209.66,209.64,0.72]
[1759111657953,28.38577383,209.68,209.64,0.72]
[1759111658142,29.06577383,209.68,209.64,0.72]
[1759111658548,29.06577383,209.68,209.65,4.76985451]
[1759111659938,28.38577383,209.68,209.65,4.76985451]
[1759111660145,29.06577383,209.68,209.65,4.76985451]
[1759111660362,2.38577383,209.66,209.65,4.76985451]
[1759111664147,26.68,209.69,209.65,4.76985451]
[1759111664330,2.38577383,209.67,209.65,4.76985451]
[1759111665652,2.38577383,209.67,209.64,4.77008204]
[1759111666157,3.06577383,209.67,209.64,4.77008204]
[1759111666664,2.38577383,209.67,209.64,5.49008204]
[1759111667757,2.38577383,209.67,209.65,0.72]
[1759111668264,2.38577383,209.67,209.64,16.69528715]
[1759111668463,2.38577383,209.67,209.64,17.41528715]
[1759111669051,26.68,209.69,209.64,17.41528715]
[1759111669253,2.38577383,209.67,209.65,0.72]
[1759111669868,2.38577383,209.67,209.66,0.72]
[1759111670162,26.68,209.71,209.66,0.72]
[1759111670343,2.38577383,209.71,209.66,0.72]
[1759111671253,2.38577383,209.71,209.67,16.69289836]
[1759111671444,0.68,209.74,209.67,16.69289836]
[1759111671445,28.38577383,209.73,209.68,0.71]
[1759111671642,28.38577383,209.73,209.69,0.71]
[1759111672068,28.38577383,209.73,209.67,16.69289836]
[1759111672268,2.38577383,209.73,209.7,0.71]
[1759111672444,2.38577383,209.73,209.71,0.71]
[1759111673067,2.38577383,209.73,209.67,16.69289836]
[1759111673068,2.38577383,209.73,209.68,0.71]
[1759111673376,2.38577383,209.73,209.69,0.71]
[1759111673542,2.38577383,209.73,209.7,0.71]
[1759111673941,2.38577383,209.73,209.67,11.92349883]
[1759111674145,2.38577383,209.73,209.68,0.71]
[1759111674367,2.38577383,209.73,209.67,11.92349883]
[1759111674550,2.38577383,209.73,209.68,0.71]
[1759111674551,3.10577383,209.73,209.68,0.71]
[1759111674746,3.10577383,209.73,209.67,11.92349883]
[1759111674957,3.10577383,209.73,209.68,0.71]
[1759111675151,3.10577383,209.73,209.69,0.71]
[1759111675359,0.72,209.72,209.7,4.76871721]
[1759111675546,2.38577383,209.71,209.7,4.76871721]
[1759111676271,1.527516,209.71,209.7,4.76871721]
[1759111677064,0.72,209.74,209.69,4.76894463]
[1759111677266,1.527516,209.72,209.69,5.47894463]
[1759111680546,0.72,209.71,209.69,4.76894463]
[1759111680950,1.527516,209.72,209.69,4.76894463]
[1759111681163,1.527516,209.72,209.65,36.94]
[1759111681164,1.527516,209.7,209.68,4.76916498]
[1759111681475,0.72,209.69,209.65,37.65]
[1759111681659,0.72,209.69,209.66,4.76962701]
[1759111681856,2.247516,209.68,209.62,4.77053716]
[1759111682058,1.527516,209.66,209.62,4.77053716]
[1759111682256,1.527516,209.66,209.62,5.48053716]
[1759111682257,2.247516,209.66,209.62,5.48053716]
[1759111683069,1.527516,209.66,209.62,4.77053716]
[1759111683376,2.247516,209.66,209.62,4.77053716]
[1759111683875,2.247516,209.66,209.62,5.48053716]
[1759111684175,1.527516,209.66,209.62,4.77053716]
[1759111684372,27.527516,209.66,209.63,0.71]
[1759111685068,1.527516,209.67,209.64,0.71]
[1759111685273,27.527516,209.68,209.65,0.71]
[1759111685460,27.527516,209.68,209.61,11.92650332]
[1759111685666,27.527516,209.68,209.66,0.71]
[1759111686174,1.527516,209.68,209.66,0.71]
[1759111686375,1.527516,209.68,209.67,4.76939953]
[1759111687873,1.527516,209.69,209.67,0.71]
[1759111688179,28.247516,209.69,209.64,12.63509174]
[1759111688379,28.247516,209.69,209.65,0.71]
[1759111689281,1.527516,209.68,209.66,4.76962701]
[1759111689868,1.527516,209.68,209.67,0.71]
[1759111690070,27.527516,209.7,209.67,0.71]
[1759111690865,1.527516,209.7,209.67,0.71]
[1759111691380,1.527516,209.7,209.68,4.76917207]
[1759111691562,2.247516,209.7,209.68,4.76917207]
[1759111691881,2.247516,209.7,209.66,5.47944877]
[1759111692075,1.527516,209.68,209.66,4.76944877]
[1759111692262,1.527516,209.68,209.66,5.47944877]
[1759111693678,1.527516,209.68,209.67,0.69]
[1759111694068,1.527516,209.71,209.67,0.69]
[1759111694384,1.527516,209.73,209.67,0.69]
[1759111694586,27.527516,209.73,209.67,0.69]
[1759111695080,26.00000001,209.75,209.67,0.69]
[1759111695282,27.527516,209.74,209.67,0.69]
[1759111695667,27.527516,209.74,209.68,16.69210224]
[1759111695865,1.527516,209.7,209.65,0.69]
[1759111696165,1.527516,209.68,209.65,0.69]
[1759111696982,1.527516,209.66,209.6,0.69]
[1759111697172,1.527516,209.64,209.6,0.69]
[1759111698683,0.72,209.63,209.61,4.77076475]
[1759111698886,27.527516,209.64,209.61,4.77076475]
[1759111699281,1.527516,209.62,209.61,4.77076475]
[1759111700485,1.527516,209.62,209.6,4.77099236]
[1759111701791,1.527516,209.62,209.6,0.67]
[1759111703182,1.527516,209.62,209.58,12.59805183]
[1759111703369,2.247516,209.62,209.58,12.59805183]
[1759111703904,1.527516,209.62,209.59,0.67]
[1759111704080,26.0,209.63,209.6,0.67]
[1759111704272,27.527516,209.63,209.58,16.69949948]
[1759111704473,27.527516,209.63,209.59,0.67]
[1759111704773,27.527516,209.63,209.58,16.69949948]
[1759111705079,28.247516,209.63,209.59,0.67]
[1759111706793,28.247516,209.63,209.6,4.77099236]
[1759111707895,26.0,209.63,209.61,0.67]
[1759111708884,26.0,209.63,209.62,4.77053716]
[1759111709194,26.0,209.63,209.6,4.77077201]